[Event "*** Titled Tuesday Blitz"]
[Site "Chess.com"]
[Date "2021.04.06"]
[Round "2"]
[White "zmeeed67"]
[Black "viggi38"]
[Result "0-1"]
[WhiteElo "2413"]
[BlackElo "2642"]
[TimeControl "180+1"]
[EndTime "10:17:56 PDT"]
[Termination "viggi38 won on time"]

1. d4 {[%clk 0:03:00.9]} 1... f5 {[%clk 0:02:59.7]} 2. c4 {[%clk 0:03:01.4]}
2... Nf6 {[%clk 0:03:00.1]} 3. Nc3 {[%clk 0:03:00.9]} 3... g6 {[%clk 0:02:59.9]}
4. g3 {[%clk 0:03:01.3]} 4... Bg7 {[%clk 0:02:59.8]} 5. Bg2 {[%clk 0:03:01.9]}
5... O-O {[%clk 0:03:00.5]} 6. Nh3 {[%clk 0:02:59.7]} 6... c6 {[%clk 0:02:58.6]}
7. d5 {[%clk 0:02:54.8]} 7... e5 {[%clk 0:02:54.4]} 8. dxe6 {[%clk 0:02:41.5]}
8... dxe6 {[%clk 0:02:55.3]} 9. O-O {[%clk 0:02:39.7]} 9... e5 {[%clk
0:02:54.3]} 10. e4 {[%clk 0:02:16.6]} 10... Qe7 {[%clk 0:02:47.1]} 11. exf5
{[%clk 0:02:15.7]} 11... gxf5 {[%clk 0:02:41]} 12. Re1 {[%clk 0:02:01]} 12...
Qc7 {[%clk 0:02:37]} 13. Be3 {[%clk 0:01:43.1]} 13... Na6 {[%clk 0:02:33.4]} 14.
Ng5 {[%clk 0:01:22.8]} 14... h6 {[%clk 0:02:23]} 15. Nf3 {[%clk 0:01:23.1]}
15... Be6 {[%clk 0:02:23.4]} 16. Nxe5 {[%clk 0:01:01.7]} 16... Rad8 {[%clk
0:02:01.5]} 17. Qc1 {[%clk 0:01:01.1]} 17... Kh7 {[%clk 0:01:54]} 18. Nf3 {[%clk
0:00:58.4]} 18... Nb4 {[%clk 0:01:53.5]} 19. Bf4 {[%clk 0:00:49.3]} 19... Qc8
{[%clk 0:01:50.2]} 20. Ne5 {[%clk 0:00:37.2]} 20... Nh5 {[%clk 0:01:49.1]} 21.
a3 {[%clk 0:00:24.2]} 21... Bxe5 {[%clk 0:01:46]} 22. Bxe5 {[%clk 0:00:21.3]}
22... Nd3 {[%clk 0:01:45.7]} 23. Qe3 {[%clk 0:00:17.7]} 23... Nxe1 {[%clk
0:01:42.6]} 24. Rxe1 {[%clk 0:00:18.6]} 24... Bxc4 {[%clk 0:01:40.5]} 25. Qc5
{[%clk 0:00:13.3]} 25... Be6 {[%clk 0:01:33.6]} 26. Bf3 {[%clk 0:00:08]} 26...
Ng7 {[%clk 0:01:23.9]} 27. Bxg7 {[%clk 0:00:03.3]} 27... Kxg7 {[%clk 0:01:24.8]}
28. Qe5+ {[%clk 0:00:02.9]} 28... Rf6 {[%clk 0:01:24.3]} 29. Bh5 {[%clk
0:00:03.6]} 29... Rd7 {[%clk 0:01:12]} 30. Ne2 {[%clk 0:00:03.6]} 30... Qc7
{[%clk 0:01:10.6]} 31. Nf4 {[%clk 0:00:03.5]} 31... Qxe5 {[%clk 0:01:10.3]} 32.
Rxe5 {[%clk 0:00:04.4]} 32... Bf7 {[%clk 0:01:10.9]} 33. Bf3 {[%clk 0:00:04.7]}
33... Rfd6 {[%clk 0:01:09.9]} 34. Rxf5 {[%clk 0:00:03.2]} 34... Rd2 {[%clk
0:01:07.7]} 35. b4 {[%clk 0:00:03]} 35... Ra2 {[%clk 0:01:07.2]} 36. Re5 {[%clk
0:00:02]} 36... Rxa3 {[%clk 0:01:07.1]} 37. Bg4 {[%clk 0:00:02.5]} 37... Rd4
{[%clk 0:01:04.4]} 38. Re7 {[%clk 0:00:02.5]} 38... Rxb4 {[%clk 0:01:04.4]} 39.
Nh5+ {[%clk 0:00:01.5]} 39... Kf8 {[%clk 0:01:03.4]} 0-1

[Event "*** Titled Tuesday Blitz"]
[Site "Chess.com"]
[Date "2021.04.06"]
[Round "2"]
[White "Chessmasterzt"]
[Black "SergioGarciaFuentes"]
[Result "1-0"]
[WhiteElo "2620"]
[BlackElo "2317"]
[TimeControl "180+1"]
[EndTime "10:17:58 PDT"]
[Termination "Chessmasterzt won on time"]

1. d4 {[%clk 0:03:00.9]} 1... d5 {[%clk 0:02:57.9]} 2. c4 {[%clk 0:02:59.8]}
2... c6 {[%clk 0:02:57.6]} 3. Nf3 {[%clk 0:02:59.1]} 3... Nf6 {[%clk 0:02:57.7]}
4. Nc3 {[%clk 0:02:56.3]} 4... a6 {[%clk 0:02:57.3]} 5. a4 {[%clk 0:02:45]} 5...
g6 {[%clk 0:02:39.4]} 6. e3 {[%clk 0:02:09.5]} 6... Bg7 {[%clk 0:02:37.1]} 7.
Qb3 {[%clk 0:02:07.2]} 7... O-O {[%clk 0:02:34.3]} 8. Bd2 {[%clk 0:02:06.8]}
8... a5 {[%clk 0:02:18.9]} 9. Bd3 {[%clk 0:01:53.8]} 9... Na6 {[%clk 0:02:17.9]}
10. cxd5 {[%clk 0:01:53.8]} 10... Nb4 {[%clk 0:02:12]} 11. Be2 {[%clk
0:01:51.4]} 11... Bf5 {[%clk 0:01:47.8]} 12. O-O {[%clk 0:01:44.5]} 12... Bc2
{[%clk 0:01:44.7]} 13. Qa3 {[%clk 0:01:44]} 13... cxd5 {[%clk 0:01:44.5]} 14.
Nb5 {[%clk 0:01:33.8]} 14... Nc6 {[%clk 0:01:23.6]} 15. Rfc1 {[%clk 0:01:28.3]}
15... Bf5 {[%clk 0:01:19.9]} 16. b4 {[%clk 0:01:21]} 16... Ne4 {[%clk
0:01:15.6]} 17. bxa5 {[%clk 0:01:01.1]} 17... Nxd2 {[%clk 0:01:08.1]} 18. Nxd2
{[%clk 0:01:02]} 18... e5 {[%clk 0:01:01.9]} 19. Nd6 {[%clk 0:00:35]} 19... exd4
{[%clk 0:00:51.8]} 20. Nxf5 {[%clk 0:00:34.8]} 20... gxf5 {[%clk 0:00:41.8]} 21.
exd4 {[%clk 0:00:34]} 21... Nxd4 {[%clk 0:00:36.1]} 22. Bd1 {[%clk 0:00:34]}
22... Qxa5 {[%clk 0:00:21.1]} 23. Qd3 {[%clk 0:00:33.2]} 23... Rfe8 {[%clk
0:00:15.7]} 24. Bh5 {[%clk 0:00:27.7]} 24... Ne2+ {[%clk 0:00:03.8]} 25. Bxe2
{[%clk 0:00:26.6]} 1-0

[Event "*** Titled Tuesday Blitz"]
[Site "Chess.com"]
[Date "2021.04.06"]
[Round "2"]
[White "AlphaHero0"]
[Black "vlad_Sid"]
[Result "0-1"]
[WhiteElo "2081"]
[BlackElo "2598"]
[TimeControl "180+1"]
[EndTime "10:17:58 PDT"]
[Termination "vlad_Sid won by resignation"]

1. e4 {[%clk 0:03:00.9]} 1... c6 {[%clk 0:03:00]} 2. Nc3 {[%clk 0:03:00.3]} 2...
d5 {[%clk 0:03:00.9]} 3. Nf3 {[%clk 0:03:00.9]} 3... dxe4 {[%clk 0:03:01]} 4.
Nxe4 {[%clk 0:03:00.2]} 4... Nf6 {[%clk 0:03:01.9]} 5. Nxf6+ {[%clk 0:03:00.4]}
5... exf6 {[%clk 0:03:02.8]} 6. d4 {[%clk 0:03:00.8]} 6... Bd6 {[%clk
0:03:03.2]} 7. Be2 {[%clk 0:03:01.7]} 7... O-O {[%clk 0:03:03.9]} 8. O-O {[%clk
0:03:01.7]} 8... Na6 {[%clk 0:03:04.1]} 9. c4 {[%clk 0:03:01.7]} 9... Nc7 {[%clk
0:03:04]} 10. Re1 {[%clk 0:03:01.2]} 10... Re8 {[%clk 0:03:04]} 11. a3 {[%clk
0:03:00.4]} 11... Be6 {[%clk 0:02:59.9]} 12. Be3 {[%clk 0:02:53.6]} 12... Qd7
{[%clk 0:02:59.3]} 13. h3 {[%clk 0:02:45.2]} 13... a6 {[%clk 0:02:55.5]} 14. Qd2
{[%clk 0:02:41.2]} 14... b5 {[%clk 0:02:47.9]} 15. d5 {[%clk 0:02:14.3]} 15...
cxd5 {[%clk 0:02:45.4]} 16. c5 {[%clk 0:02:15.2]} 16... Be5 {[%clk 0:02:31.9]}
17. Nd4 {[%clk 0:02:10]} 17... Rac8 {[%clk 0:02:06.7]} 18. Rac1 {[%clk
0:02:09.2]} 18... Red8 {[%clk 0:01:46.5]} 19. Qa5 {[%clk 0:01:58.5]} 19... f5
{[%clk 0:01:15.5]} 20. f4 {[%clk 0:01:34.8]} 20... Bxd4 {[%clk 0:01:01.4]} 21.
Bxd4 {[%clk 0:01:34.4]} 21... Qc6 {[%clk 0:00:59.3]} 22. Qc3 {[%clk 0:01:16.5]}
22... f6 {[%clk 0:00:57.4]} 23. Bf3 {[%clk 0:01:05.7]} 23... Bf7 {[%clk
0:00:56]} 24. g3 {[%clk 0:01:05.1]} 24... Ne6 {[%clk 0:00:54.1]} 25. b4 {[%clk
0:01:01.6]} 25... a5 {[%clk 0:00:50.7]} 26. Rcd1 {[%clk 0:00:57.7]} 26... axb4
{[%clk 0:00:48.2]} 27. axb4 {[%clk 0:00:57.3]} 27... Ra8 {[%clk 0:00:45.5]} 28.
Rd2 {[%clk 0:00:53.6]} 28... Ra4 {[%clk 0:00:33.7]} 29. Bd1 {[%clk 0:00:43.9]}
29... Ra7 {[%clk 0:00:32]} 30. Bf3 {[%clk 0:00:42.8]} 30... Nc7 {[%clk
0:00:31.7]} 31. Re7 {[%clk 0:00:31.4]} 31... Rda8 {[%clk 0:00:31.6]} 32. Bxf6
{[%clk 0:00:24.1]} 32... gxf6 {[%clk 0:00:31.1]} 33. Rxc7 {[%clk 0:00:17.5]}
33... Rxc7 {[%clk 0:00:30.5]} 34. Qxf6 {[%clk 0:00:18.4]} 34... Qxf6 {[%clk
0:00:30.3]} 0-1

[Event "*** Titled Tuesday Blitz"]
[Site "Chess.com"]
[Date "2021.04.06"]
[Round "2"]
[White "Forantes"]
[Black "shreyansshah123"]
[Result "1-0"]
[WhiteElo "2356"]
[BlackElo "1632"]
[TimeControl "180+1"]
[EndTime "10:17:59 PDT"]
[Termination "Forantes won by checkmate"]

1. Nf3 {[%clk 0:03:00.9]} 1... Nf6 {[%clk 0:02:59.3]} 2. g3 {[%clk 0:03:00.9]}
2... g6 {[%clk 0:02:59.9]} 3. b3 {[%clk 0:03:01.1]} 3... Bg7 {[%clk 0:03:00.8]}
4. Bb2 {[%clk 0:03:01.5]} 4... O-O {[%clk 0:03:01.2]} 5. Bg2 {[%clk 0:03:01.8]}
5... Nc6 {[%clk 0:03:01]} 6. d4 {[%clk 0:03:01.3]} 6... b6 {[%clk 0:03:01.6]} 7.
O-O {[%clk 0:03:01.5]} 7... d5 {[%clk 0:03:00.8]} 8. c4 {[%clk 0:02:44.3]} 8...
e6 {[%clk 0:03:00.3]} 9. Nc3 {[%clk 0:02:41.9]} 9... Bb7 {[%clk 0:02:57.3]} 10.
e3 {[%clk 0:02:33.2]} 10... Ne7 {[%clk 0:02:55.8]} 11. Qc2 {[%clk 0:02:28.6]}
11... Nd7 {[%clk 0:02:47.8]} 12. Rac1 {[%clk 0:02:25.9]} 12... c5 {[%clk
0:02:47.5]} 13. Rfd1 {[%clk 0:02:25.6]} 13... cxd4 {[%clk 0:02:47]} 14. Nxd4
{[%clk 0:02:11.4]} 14... Rc8 {[%clk 0:02:42.1]} 15. Qe2 {[%clk 0:01:55.1]} 15...
Qe8 {[%clk 0:02:35.2]} 16. Ncb5 {[%clk 0:01:45.1]} 16... Qd8 {[%clk 0:02:12.4]}
17. Nd6 {[%clk 0:01:32.7]} 17... Rc7 {[%clk 0:02:10.7]} 18. Nxb7 {[%clk
0:01:33]} 18... Rxb7 {[%clk 0:02:10.6]} 19. cxd5 {[%clk 0:01:27.6]} 19... Nxd5
{[%clk 0:02:09.9]} 20. Nc6 {[%clk 0:01:19.2]} 20... Qg5 {[%clk 0:02:04.7]} 21.
Bxg7 {[%clk 0:01:09.9]} 21... Kxg7 {[%clk 0:02:05.6]} 22. Bxd5 {[%clk
0:01:09.5]} 22... exd5 {[%clk 0:02:05.1]} 23. h4 {[%clk 0:00:41.3]} 23... Qf6
{[%clk 0:01:58.2]} 24. Rxd5 {[%clk 0:00:38.3]} 24... Nc5 {[%clk 0:01:55.5]} 25.
Nb4 {[%clk 0:00:31.7]} 25... Rd7 {[%clk 0:01:53.4]} 26. Rxd7 {[%clk 0:00:31.5]}
26... Nxd7 {[%clk 0:01:54.3]} 27. Nd5 {[%clk 0:00:23.8]} 27... Qd6 {[%clk
0:01:52.9]} 28. Qb2+ {[%clk 0:00:21.6]} 28... Kg8 {[%clk 0:01:53.1]} 29. e4
{[%clk 0:00:20.2]} 29... f5 {[%clk 0:01:52.1]} 30. Qe2 {[%clk 0:00:04]} 30...
fxe4 {[%clk 0:01:51.4]} 31. Qxe4 {[%clk 0:00:04.7]} 31... Nc5 {[%clk 0:01:50.1]}
32. Qc4 {[%clk 0:00:05.1]} 32... Kh8 {[%clk 0:01:48.9]} 33. Ne3 {[%clk
0:00:04.8]} 33... Re8 {[%clk 0:01:47.5]} 34. Qc3+ {[%clk 0:00:05.1]} 34... Kg8
{[%clk 0:01:46.9]} 35. Rd1 {[%clk 0:00:05.4]} 35... Qe7 {[%clk 0:01:32.8]} 36.
Nd5 {[%clk 0:00:04.2]} 36... Qe5 {[%clk 0:01:32.4]} 37. Nf6+ {[%clk 0:00:04.5]}
37... Kf7 {[%clk 0:01:32]} 38. Qxe5 {[%clk 0:00:01.9]} 38... Rxe5 {[%clk
0:01:32]} 39. Nd7 {[%clk 0:00:02.7]} 39... Re7 {[%clk 0:01:30.6]} 40. Nxc5
{[%clk 0:00:03.1]} 40... bxc5 {[%clk 0:01:30.4]} 41. Rc1 {[%clk 0:00:04]} 41...
Rc7 {[%clk 0:01:30.2]} 42. b4 {[%clk 0:00:04.7]} 42... Ke6 {[%clk 0:01:29.9]}
43. Rxc5 {[%clk 0:00:04.5]} 43... Rxc5 {[%clk 0:01:29]} 44. bxc5 {[%clk
0:00:04.7]} 44... Kd5 {[%clk 0:01:29.9]} 45. g4 {[%clk 0:00:04.9]} 45... Kxc5
{[%clk 0:01:29.4]} 46. Kg2 {[%clk 0:00:05.4]} 46... Kb4 {[%clk 0:01:29.9]} 47.
f4 {[%clk 0:00:05.8]} 47... Ka3 {[%clk 0:01:30.8]} 48. f5 {[%clk 0:00:06.2]}
48... Kb4 {[%clk 0:01:28.9]} 49. f6 {[%clk 0:00:06.2]} 49... Kc5 {[%clk
0:01:28.8]} 50. f7 {[%clk 0:00:06.7]} 50... a5 {[%clk 0:01:29.5]} 51. f8=Q+
{[%clk 0:00:07.4]} 51... Kb5 {[%clk 0:01:28.8]} 52. Qb8+ {[%clk 0:00:08]} 52...
Kc6 {[%clk 0:01:29]} 53. Qb3 {[%clk 0:00:08.3]} 53... Kc5 {[%clk 0:01:28.4]} 54.
Qa4 {[%clk 0:00:08.5]} 54... Kd5 {[%clk 0:01:28.1]} 55. Kf3 {[%clk 0:00:08.9]}
55... Kd6 {[%clk 0:01:27.5]} 56. Qxa5 {[%clk 0:00:09.3]} 56... Kc6 {[%clk
0:01:27.6]} 57. Ke4 {[%clk 0:00:09.6]} 57... Kd6 {[%clk 0:01:27.9]} 58. Qb6+
{[%clk 0:00:09.8]} 58... Kd7 {[%clk 0:01:27.9]} 59. Ke5 {[%clk 0:00:09.8]} 59...
Ke8 {[%clk 0:01:28.3]} 60. Qc7 {[%clk 0:00:09.8]} 60... Kf8 {[%clk 0:01:28.6]}
61. Kf6 {[%clk 0:00:10.4]} 61... g5 {[%clk 0:01:28.5]} 62. Qc8# {[%clk
0:00:10.6]} 1-0

[Event "*** Titled Tuesday Blitz"]
[Site "Chess.com"]
[Date "2021.04.06"]
[Round "2"]
[White "Shahaliyev"]
[Black "The_filthy"]
[Result "1-0"]
[WhiteElo "2650"]
[BlackElo "2354"]
[TimeControl "180+1"]
[EndTime "10:18:00 PDT"]
[Termination "Shahaliyev won by resignation"]

1. e4 {[%clk 0:03:00.9]} 1... e6 {[%clk 0:02:59.6]} 2. Nc3 {[%clk 0:03:01.8]}
2... c5 {[%clk 0:02:58.3]} 3. d4 {[%clk 0:03:02.7]} 3... cxd4 {[%clk 0:02:58.5]}
4. Qxd4 {[%clk 0:03:03.5]} 4... Nc6 {[%clk 0:02:58.6]} 5. Qe3 {[%clk 0:03:04.1]}
5... a6 {[%clk 0:02:58.7]} 6. Bd2 {[%clk 0:03:04.5]} 6... Nf6 {[%clk 0:02:58.9]}
7. O-O-O {[%clk 0:03:04.5]} 7... b5 {[%clk 0:02:47.6]} 8. f4 {[%clk 0:03:04.3]}
8... b4 {[%clk 0:02:43]} 9. Nd5 {[%clk 0:03:04.1]} 9... Ng4 {[%clk 0:02:19.8]}
10. Qe1 {[%clk 0:03:01.4]} 10... Qa5 {[%clk 0:02:18.2]} 11. Bc4 {[%clk
0:02:59.5]} 11... Bc5 {[%clk 0:02:15.7]} 12. Nh3 {[%clk 0:02:54.9]} 12... O-O
{[%clk 0:02:14]} 13. Qg3 {[%clk 0:02:52.2]} 13... exd5 {[%clk 0:02:08.8]} 14.
exd5 {[%clk 0:02:53.1]} 14... Nd4 {[%clk 0:02:00.8]} 15. Qxg4 {[%clk 0:02:49.6]}
15... d6 {[%clk 0:01:59.8]} 16. Qh5 {[%clk 0:02:48.6]} 16... Bf5 {[%clk
0:01:38.6]} 17. Be3 {[%clk 0:02:41.8]} 17... Bg6 {[%clk 0:01:33.3]} 18. Qg4
{[%clk 0:02:37.8]} 18... Nf5 {[%clk 0:01:30.3]} 19. Bd2 {[%clk 0:02:20.9]} 19...
h5 {[%clk 0:01:22.2]} 20. Qe2 {[%clk 0:02:18.4]} 20... Rfe8 {[%clk 0:01:19.4]}
21. Qf1 {[%clk 0:02:17.3]} 21... Rac8 {[%clk 0:01:11.6]} 22. Kb1 {[%clk
0:02:14.1]} 22... Ne3 {[%clk 0:01:00.4]} 23. Bxe3 {[%clk 0:02:12.3]} 23... Bxe3
{[%clk 0:01:00.3]} 24. f5 {[%clk 0:02:12.7]} 24... Bh7 {[%clk 0:00:56.3]} 25.
Bb3 {[%clk 0:02:03.7]} 25... Re5 {[%clk 0:00:53.1]} 26. Qf3 {[%clk 0:01:57.6]}
26... Bxf5 {[%clk 0:00:48.4]} 27. Rhe1 {[%clk 0:01:58.2]} 27... Bg4 {[%clk
0:00:45.6]} 28. Qg3 {[%clk 0:01:56.6]} 28... Bxd1 {[%clk 0:00:44]} 29. Rxe3
{[%clk 0:01:54.5]} 29... Rce8 {[%clk 0:00:37.3]} 30. Rxe5 {[%clk 0:01:45.7]}
30... Rxe5 {[%clk 0:00:38.2]} 31. Nf2 {[%clk 0:01:43.1]} 31... Bg4 {[%clk
0:00:33.5]} 32. Nd3 {[%clk 0:01:39.6]} 32... Qb6 {[%clk 0:00:31.2]} 33. a3
{[%clk 0:01:37.6]} 33... bxa3 {[%clk 0:00:22.2]} 34. Nxe5 {[%clk 0:01:34]} 34...
dxe5 {[%clk 0:00:23.1]} 35. Qxe5 {[%clk 0:01:33.3]} 35... axb2 {[%clk
0:00:22.7]} 36. d6 {[%clk 0:01:29.8]} 36... a5 {[%clk 0:00:14.6]} 37. h3 {[%clk
0:01:28]} 37... Bd7 {[%clk 0:00:12.4]} 38. Qe7 {[%clk 0:01:27]} 38... Be6 {[%clk
0:00:09.4]} 39. d7 {[%clk 0:01:08.9]} 39... Qg1+ {[%clk 0:00:07.3]} 40. Kxb2
{[%clk 0:01:07.9]} 40... Qd4+ {[%clk 0:00:06.7]} 41. Kb1 {[%clk 0:01:07.6]}
41... Qg1+ {[%clk 0:00:06.2]} 42. Ka2 {[%clk 0:01:05.9]} 42... Bxb3+ {[%clk
0:00:05.4]} 43. cxb3 {[%clk 0:01:04.5]} 43... Qf2+ {[%clk 0:00:05.1]} 44. Ka3
{[%clk 0:01:04.2]} 44... Qc5+ {[%clk 0:00:03.5]} 45. Qxc5 {[%clk 0:01:04]} 1-0

[Event "*** Titled Tuesday Blitz"]
[Site "Chess.com"]
[Date "2021.04.06"]
[Round "2"]
[White "Nemsko"]
[Black "Ranindu2003"]
[Result "0-1"]
[WhiteElo "2314"]
[BlackElo "2589"]
[TimeControl "180+1"]
[EndTime "10:18:00 PDT"]
[Termination "Ranindu2003 won by resignation"]

1. e4 {[%clk 0:03:00.9]} 1... c5 {[%clk 0:02:58.9]} 2. Nf3 {[%clk 0:03:00.2]}
2... d6 {[%clk 0:02:58]} 3. d4 {[%clk 0:03:01.1]} 3... cxd4 {[%clk 0:02:58.9]}
4. Nxd4 {[%clk 0:03:02]} 4... Nf6 {[%clk 0:02:59.2]} 5. Nc3 {[%clk 0:03:02.3]}
5... a6 {[%clk 0:02:59.8]} 6. Be3 {[%clk 0:02:59]} 6... e5 {[%clk 0:03:00.1]} 7.
Nb3 {[%clk 0:02:56]} 7... Be7 {[%clk 0:03:00.7]} 8. h3 {[%clk 0:02:54.9]} 8...
Be6 {[%clk 0:02:57.6]} 9. Qf3 {[%clk 0:02:53.5]} 9... O-O {[%clk 0:02:56.2]} 10.
O-O-O {[%clk 0:02:51.8]} 10... Nc6 {[%clk 0:02:52.3]} 11. g4 {[%clk 0:02:52.3]}
11... Qc7 {[%clk 0:02:49]} 12. g5 {[%clk 0:02:47.8]} 12... Nd7 {[%clk
0:02:48.8]} 13. h4 {[%clk 0:02:41.2]} 13... b5 {[%clk 0:02:45.4]} 14. Bd3 {[%clk
0:02:38.2]} 14... Nc5 {[%clk 0:02:36.7]} 15. Kb1 {[%clk 0:02:30.7]} 15... Nxd3
{[%clk 0:02:29.8]} 16. cxd3 {[%clk 0:02:31.6]} 16... Qb7 {[%clk 0:02:17.6]} 17.
h5 {[%clk 0:02:28.6]} 17... a5 {[%clk 0:02:13]} 18. Nd5 {[%clk 0:02:14]} 18...
Bxd5 {[%clk 0:02:10.2]} 19. exd5 {[%clk 0:02:14.9]} 19... Nb4 {[%clk 0:02:10.8]}
20. Qh3 {[%clk 0:01:58.1]} 20... Qxd5 {[%clk 0:01:58.8]} 21. g6 {[%clk
0:01:44.6]} 21... Nxa2 {[%clk 0:01:55.5]} 22. h6 {[%clk 0:01:20.7]} 22... fxg6
{[%clk 0:00:44.2]} 23. hxg7 {[%clk 0:01:17.7]} 23... h5 {[%clk 0:00:43.9]} 24.
Qg3 {[%clk 0:00:56.8]} 24... Rf6 {[%clk 0:00:25.3]} 25. Bg5 {[%clk 0:00:54.8]}
25... Qxb3 {[%clk 0:00:20.3]} 26. Bxf6 {[%clk 0:00:52]} 26... Bxf6 {[%clk
0:00:21.2]} 27. Rd2 {[%clk 0:00:19.3]} 27... Nc3+ {[%clk 0:00:17.6]} 28. Kc1
{[%clk 0:00:18.7]} 28... Rc8 {[%clk 0:00:17.9]} 29. Rc2 {[%clk 0:00:16.7]} 29...
Ne2+ {[%clk 0:00:17.4]} 30. Kd1 {[%clk 0:00:17.2]} 0-1

[Event "*** Titled Tuesday Blitz"]
[Site "Chess.com"]
[Date "2021.04.06"]
[Round "2"]
[White "Chigorinetz"]
[Black "MasterMK73"]
[Result "1-0"]
[WhiteElo "2509"]
[BlackElo "2270"]
[TimeControl "180+1"]
[EndTime "10:18:00 PDT"]
[Termination "Chigorinetz won by resignation"]

1. e4 {[%clk 0:03:00.9]} 1... c5 {[%clk 0:02:58.6]} 2. Nc3 {[%clk 0:03:00.2]}
2... e6 {[%clk 0:02:57.6]} 3. Nge2 {[%clk 0:03:00.2]} 3... a6 {[%clk 0:02:56.2]}
4. g4 {[%clk 0:02:59.2]} 4... Nc6 {[%clk 0:02:54.6]} 5. Bg2 {[%clk 0:02:58.8]}
5... g6 {[%clk 0:02:49.3]} 6. d4 {[%clk 0:02:50.5]} 6... cxd4 {[%clk 0:02:46.4]}
7. Nxd4 {[%clk 0:02:51.4]} 7... Bg7 {[%clk 0:02:46.1]} 8. Nxc6 {[%clk
0:02:51.5]} 8... bxc6 {[%clk 0:02:45.4]} 9. h4 {[%clk 0:02:38.4]} 9... h6 {[%clk
0:02:42]} 10. Bf4 {[%clk 0:02:29.7]} 10... e5 {[%clk 0:02:31.2]} 11. Be3 {[%clk
0:02:29.1]} 11... d6 {[%clk 0:02:27.1]} 12. g5 {[%clk 0:02:25.4]} 12... h5
{[%clk 0:02:26]} 13. Qd2 {[%clk 0:02:24.5]} 13... Bg4 {[%clk 0:02:09.8]} 14. f3
{[%clk 0:02:23]} 14... Be6 {[%clk 0:02:09.2]} 15. O-O-O {[%clk 0:02:21.1]} 15...
Ke7 {[%clk 0:01:44.3]} 16. f4 {[%clk 0:02:18.6]} 16... Qc7 {[%clk 0:01:37.7]}
17. Rhf1 {[%clk 0:02:10.6]} 17... Bg4 {[%clk 0:01:31.5]} 18. f5 {[%clk
0:02:05.2]} 18... Bxd1 {[%clk 0:01:18.1]} 19. f6+ {[%clk 0:02:04.7]} 19... Nxf6
{[%clk 0:01:18]} 20. gxf6+ {[%clk 0:02:04.2]} 20... Bxf6 {[%clk 0:01:17.8]} 21.
Qf2 {[%clk 0:01:52.1]} 21... Kf8 {[%clk 0:01:05.5]} 22. Qxf6 {[%clk 0:01:51.3]}
22... Kg8 {[%clk 0:01:05.8]} 23. Rxd1 {[%clk 0:01:45.7]} 23... Rd8 {[%clk
0:00:55.3]} 24. Bh3 {[%clk 0:01:45.7]} 24... Kh7 {[%clk 0:00:47.4]} 25. Rg1
{[%clk 0:01:35.4]} 25... Rde8 {[%clk 0:00:34.7]} 26. Bg5 {[%clk 0:01:10.2]}
26... Qa7 {[%clk 0:00:23]} 27. Rf1 {[%clk 0:01:03.5]} 27... Rhf8 {[%clk
0:00:17.9]} 28. Qxd6 {[%clk 0:00:51.3]} 28... Qb6 {[%clk 0:00:17]} 29. Nd5
{[%clk 0:00:44.9]} 29... Qb5 {[%clk 0:00:09]} 30. Nf6+ {[%clk 0:00:39.9]} 30...
Kh8 {[%clk 0:00:08.9]} 31. Nxe8 {[%clk 0:00:37.3]} 31... Rxe8 {[%clk 0:00:08.3]}
1-0

[Event "*** Titled Tuesday Blitz"]
[Site "Chess.com"]
[Date "2021.04.06"]
[Round "2"]
[White "sergeikim"]
[Black "Aleksey_Sorokin"]
[Result "1/2-1/2"]
[WhiteElo "2534"]
[BlackElo "2784"]
[TimeControl "180+1"]
[EndTime "10:18:01 PDT"]
[Termination "Game drawn by repetition"]

1. d4 {[%clk 0:03:00.9]} 1... Nf6 {[%clk 0:02:59.6]} 2. c4 {[%clk 0:03:00.3]}
2... g6 {[%clk 0:02:59.8]} 3. Nc3 {[%clk 0:03:00.1]} 3... d5 {[%clk 0:03:00]} 4.
cxd5 {[%clk 0:02:59.5]} 4... Nxd5 {[%clk 0:03:00.9]} 5. e4 {[%clk 0:02:59.3]}
5... Nxc3 {[%clk 0:03:01]} 6. bxc3 {[%clk 0:03:00.2]} 6... Bg7 {[%clk
0:03:00.9]} 7. Bc4 {[%clk 0:02:59.6]} 7... c5 {[%clk 0:03:00.2]} 8. Ne2 {[%clk
0:02:59.3]} 8... O-O {[%clk 0:03:00.4]} 9. O-O {[%clk 0:02:59.1]} 9... Nc6
{[%clk 0:03:00.6]} 10. Be3 {[%clk 0:02:58.7]} 10... b6 {[%clk 0:03:00.9]} 11.
Qd2 {[%clk 0:02:56.2]} 11... Bb7 {[%clk 0:03:00.2]} 12. Rad1 {[%clk 0:02:53.1]}
12... Rc8 {[%clk 0:03:00.1]} 13. Bb3 {[%clk 0:02:51]} 13... cxd4 {[%clk
0:02:54]} 14. cxd4 {[%clk 0:02:49.8]} 14... Na5 {[%clk 0:02:54]} 15. Ng3 {[%clk
0:02:49.3]} 15... Nxb3 {[%clk 0:02:52.3]} 16. axb3 {[%clk 0:02:49.2]} 16... e6
{[%clk 0:02:52.7]} 17. Bh6 {[%clk 0:02:47.1]} 17... Qe7 {[%clk 0:02:43.4]} 18.
Bxg7 {[%clk 0:02:44.8]} 18... Kxg7 {[%clk 0:02:43.5]} 19. Qf4 {[%clk 0:02:39.8]}
19... Rc3 {[%clk 0:02:37.1]} 20. h4 {[%clk 0:02:33.9]} 20... Rxb3 {[%clk
0:02:28.4]} 21. h5 {[%clk 0:02:32.4]} 21... g5 {[%clk 0:02:23.9]} 22. h6+ {[%clk
0:02:08.4]} 22... Kxh6 {[%clk 0:02:19.5]} 23. Qg4 {[%clk 0:02:08.8]} 23... Kg7
{[%clk 0:01:55.7]} 24. f4 {[%clk 0:02:07.2]} 24... h6 {[%clk 0:01:39]} 25. f5
{[%clk 0:02:05]} 25... Kh7 {[%clk 0:01:28.7]} 26. Nh5 {[%clk 0:01:37.4]} 26...
Re3 {[%clk 0:01:28]} 27. fxe6 {[%clk 0:01:32]} 27... Bxe4 {[%clk 0:01:00.5]} 28.
Nf6+ {[%clk 0:01:25.1]} 28... Kg6 {[%clk 0:01:00.7]} 29. Qh5+ {[%clk 0:01:09.2]}
29... Kg7 {[%clk 0:01:00.5]} 30. d5 {[%clk 0:00:54.9]} 30... Bg6 {[%clk
0:00:51.2]} 31. Qg4 {[%clk 0:00:43.1]} 31... Rd3 {[%clk 0:00:43.4]} 32. Rxd3
{[%clk 0:00:35.8]} 32... Bxd3 {[%clk 0:00:43.5]} 33. Nh5+ {[%clk 0:00:28]} 33...
Kg8 {[%clk 0:00:30.6]} 34. Nf6+ {[%clk 0:00:26]} 34... Kg7 {[%clk 0:00:30.2]}
35. Nh5+ {[%clk 0:00:25.2]} 35... Kg8 {[%clk 0:00:30.5]} 36. Nf6+ {[%clk
0:00:24.4]} 36... Kg7 {[%clk 0:00:23.7]} 1/2-1/2